fUST/lending_fUST_20250926
["ID","MTS","AMOUNT","RATE_DAILY","PERIOD"]
[387812122,1758886253509,-480.0,0.00039726,30]
[387812123,1758886253518,-480.0,0.00039726,30]
[387812124,1758886253528,-480.0,0.00039726,30]
[387812125,1758886253537,-487.42314762,0.00039726,30]
[387812126,1758886253546,-548.41,0.00039726,30]
[387812127,1758886253555,-225.41031275,0.00039726,30]
[387812128,1758886253565,-480.0,0.00039726,30]
[387812129,1758886253574,-1173.31,0.00039726,30]
[387812130,1758886253583,-480.0,0.00039726,30]
[387812131,1758886253593,-151.0,0.00039726,120]
[387812132,1758886253602,-151.0,0.00039726,120]
[387812133,1758886253611,-151.0,0.00039726,120]
[387812134,1758886253620,-480.0,0.00039726,30]
[387812135,1758886253630,-151.0,0.00039726,120]
[387812136,1758886253639,-151.0,0.00039726,120]
[387812137,1758886253648,-257.91227318,0.00039726,30]
[387812138,1758886253658,-480.0,0.00039726,30]
[387812139,1758886253667,-480.0,0.00039726,30]
[387812140,1758886253676,-493.52831487,0.00039726,30]
[387812141,1758886253685,-480.0,0.00039726,30]
[387812142,1758886253694,-480.0,0.00039726,30]
[387812143,1758886253703,-480.0,0.00039726,30]
[387812144,1758886253713,-151.0,0.00039726,120]
[387812145,1758886253722,-151.0,0.00039726,120]
[387812146,1758886253732,-480.0,0.00039726,30]
[387812147,1758886253742,-287.702866,0.00039726,120]
[387812148,1758886253751,-951.8,0.00039726,30]
[387812149,1758886253760,-151.0,0.00039726,120]
[387812150,1758886253770,-151.0,0.00039726,120]
[387812151,1758886253779,-480.0,0.00039726,30]
[387812152,1758886253787,-480.0,0.00039726,30]
[387812153,1758886253797,-480.0,0.00039726,30]
[387812154,1758886253806,-480.0,0.00039726,30]
[387812155,1758886253815,-480.0,0.00039726,30]
[387812156,1758886253825,-480.0,0.00039726,30]
[387812157,1758886253834,-480.0,0.00039726,30]
[387812158,1758886253843,-492.66504569,0.00039726,30]
[387812159,1758886253852,-480.0,0.00039726,30]
[387812160,1758886253862,-1250.3,0.00039726,30]
[387812161,1758886253875,-480.0,0.00039726,30]
[387812162,1758886253884,-480.0,0.00039726,30]
[387812163,1758886253893,-480.0,0.00039726,30]
[387812164,1758886253903,-480.0,0.00039726,30]
[387812165,1758886253913,-480.0,0.00039726,30]
[387812166,1758886253923,-480.0,0.00039726,30]
[387812167,1758886253932,-480.0,0.00039726,30]
[387812168,1758886253942,-480.0,0.00039726,30]
[387812169,1758886253951,-480.0,0.00039726,30]
[387812170,1758886253960,-480.0,0.00039726,30]
[387812171,1758886253969,-480.0,0.00039726,30]
[387812172,1758886253979,-480.0,0.00039726,30]
[387812173,1758886253987,-515.2018459,0.00039726,30]
[387812174,1758886253994,-480.0,0.00039726,30]
[387812175,1758886254000,-480.0,0.00039726,30]
[387812176,1758886254008,-480.0,0.00039726,30]
[387812177,1758886254015,-171.17010803,0.00039726,30]
[387812178,1758886254023,-531.24,0.00039726,30]
[387812179,1758886254031,-487.94726134,0.00039726,30]
[387812180,1758886254038,-480.0,0.00039726,30]
[387812181,1758886254045,-458.49575622,0.00039726,30]
[387812182,1758886254051,-519.19,0.00039726,30]
[387812183,1758886254058,-480.0,0.00039726,30]
[387812184,1758886254066,-480.0,0.00039726,30]
[387812185,1758886254151,-489.36587671,0.00039726,30]
[387812186,1758886254161,-1257.23,0.00039726,30]
[387812187,1758886254170,-486.89566309,0.00039726,30]
[387812188,1758886254179,-480.0,0.00039726,30]
[387812189,1758886254189,-487.51417948,0.00039726,30]
[387812190,1758886254198,-480.0,0.00039726,30]
[387812191,1758886254207,-480.0,0.00039726,30]
[387812192,1758886254217,-480.0,0.00039726,30]
[387812193,1758886254227,-1140.79,0.00039726,30]
[387812194,1758886254236,-4563.8,0.00039726,30]
[387812195,1758886254246,-1477.84,0.00039726,30]
[387812196,1758886254255,-949.16,0.00039726,30]
[387812197,1758886254264,-151.0,0.00039726,120]
[387812198,1758886254273,-927.1,0.00039726,30]
[387812199,1758886254282,-151.0,0.00039726,120]
[387812200,1758886254292,-2921.82,0.00039726,30]
[387812201,1758886254301,-1657.92,0.00039726,30]
[387812202,1758886254311,-914.89,0.00039726,30]
[387812203,1758886254320,-480.0,0.00039726,30]
[387812204,1758886254330,-315.76800349,0.00039726,30]
[387812205,1758886254339,-480.0,0.00039726,30]
[387812206,1758886254348,-480.0,0.00039726,30]
[387812207,1758886254357,-480.0,0.00039726,30]
[387812208,1758886254367,-480.0,0.00039726,30]
[387812209,1758886254376,-151.0,0.00039726,120]
[387812210,1758886254385,-490.02426706,0.00039726,30]
[387812211,1758886254395,-2209.22,0.00039726,30]
[387812212,1758886254404,-151.0,0.00039726,120]
[387812213,1758886254414,-151.0,0.00039726,120]
[387812214,1758886254423,-489.53118727,0.00039726,30]
[387812215,1758886254432,-151.0,0.00039726,120]
[387812216,1758886254441,-480.0,0.00039726,30]
[387812217,1758886254451,-480.0,0.00039726,30]
[387812218,1758886254460,-480.0,0.00039726,30]
[387812219,1758886254469,-480.0,0.00039726,30]
[387812220,1758886254478,-480.0,0.00039726,30]
[387812221,1758886254487,-480.0,0.00039726,30]
[387812222,1758886254497,-775.73,0.00039726,30]
[387812223,1758886254506,-667.41,0.00039726,30]
[387812224,1758886254517,-1804.54,0.00039726,30]
[387812225,1758886254529,-480.0,0.00039726,30]
[387812226,1758886254538,-890.02,0.00039726,30]
[387812227,1758886254547,-480.0,0.00039726,30]
[387812228,1758886254557,-911.51,0.00039726,30]
[387812229,1758886254567,-3647.69,0.00039726,30]
[387812230,1758886254576,-1929.82,0.00039726,30]
[387812231,1758886254585,-1139.95,0.00039726,30]
[387812232,1758886254596,-480.0,0.00039726,30]
[387812233,1758886254606,-360.13087005,0.00039726,30]
[387812234,1758886254616,-672.24,0.00039726,30]
[387812235,1758886254625,-325.943798,0.00039726,30]
[387812236,1758886254635,-1456.76,0.00039726,30]
[387812237,1758886254645,-1256.61,0.00039726,30]
[387812238,1758886254654,-1058.01,0.00039726,30]
[387812239,1758886254663,-499.01844552,0.00039726,30]
[387812240,1758886254673,-531.16,0.00039726,30]
[387812241,1758886254682,-480.0,0.00039726,30]
[387812242,1758886254692,-707.41,0.00039726,30]
[387812243,1758886254701,-480.0,0.00039726,30]
[387812244,1758886254711,-1553.02,0.00039726,30]
[387812245,1758886254720,-214.89471277,0.00039726,30]
[387812246,1758886254730,-480.0,0.00039726,30]
[387812247,1758886254739,-1042.28,0.00039726,21]
[387812248,1758886254749,-480.0,0.00039726,30]
[387812249,1758886254758,-480.0,0.00039726,30]
[387812250,1758886254768,-513.82,0.00039726,30]
[387812251,1758886254778,-975.79,0.00039726,30]
[387812252,1758886254787,-956.88,0.00039726,30]
[387812253,1758886254796,-1622.58,0.00039726,30]
[387812254,1758886254806,-742.63,0.00039726,30]
[387812255,1758886254815,-923.8,0.00039726,30]
[387812256,1758886254825,-960.74,0.00039726,30]
[387812257,1758886254835,-1015.2,0.00039726,30]
[387812258,1758886254844,-692.2,0.00039726,30]
[387812259,1758886254854,-480.0,0.00039726,30]
[387812260,1758886254865,-480.0,0.00039726,30]
[387812261,1758886254875,-480.0,0.00039726,30]
[387812262,1758886254885,-485.36705115,0.00039726,30]
[387812263,1758886254894,-1057.22,0.00039726,30]
[387812264,1758886254904,-639.89,0.00039726,30]
[387812265,1758886254914,-1614.22,0.00039726,3]
[387812266,1758886254923,-480.0,0.00039726,30]
[387812267,1758886254933,-1131.75,0.00039726,30]
[387812268,1758886254944,-1509.77,0.00039726,30]
[387812269,1758886254954,-2107.48,0.00039726,30]
[387812270,1758886254963,-480.0,0.00039726,30]
[387812271,1758886254971,-480.0,0.00039726,30]
[387812272,1758886254981,-1117.68,0.00039726,30]
[387812273,1758886254990,-480.0,0.00039726,30]
[387812274,1758886255000,-4313.75,0.00039726,30]
[387812275,1758886255009,-5619.58,0.00039726,30]
[387812276,1758886255019,-151.0,0.00039726,120]
[387812277,1758886255028,-480.0,0.00039726,30]
[387812278,1758886255037,-5129.75,0.00039726,30]
[387812279,1758886255047,-285.817908,0.00039726,120]
[387812280,1758886255056,-666.88,0.00039726,30]
[387812281,1758886255066,-373.013574,0.00039726,30]
[387812282,1758886255075,-480.0,0.00039726,30]
[387812283,1758886255084,-373.013574,0.00039726,30]
[387812284,1758886255094,-480.0,0.00039726,30]
[387812285,1758886255104,-373.013574,0.00039726,30]
[387812286,1758886255113,-1231.34,0.00039726,30]
[387812287,1758886255123,-487.86712981,0.00039726,30]
[387812288,1758886255132,-151.0,0.00039726,120]
[387812289,1758886255142,-480.0,0.00039726,30]
[387812290,1758886255151,-480.0,0.00039726,30]
[387812291,1758886255160,-480.0,0.00039726,30]
[387812292,1758886255169,-373.013574,0.00039726,30]
[387812293,1758886255179,-151.0,0.00039726,120]
[387812294,1758886255188,-510.99,0.00039726,30]
[387812295,1758886255197,-151.0,0.00039726,120]
[387812296,1758886255206,-219.1,0.00039738,30]
[387812297,1758886255215,-7553.66971913,0.00039747,2]
[387812298,1758886255224,-151.0,0.00039768,120]
[387812299,1758886255234,-153.683209,0.00039768,120]
[387812300,1758886255243,-500.0,0.00039768,5]
[387812301,1758886255252,-217.61725616,0.00039768,5]
[387812302,1758886255261,-1017.39969314,0.00039768,5]
[387812303,1758886255271,-1500.03115209,0.00039768,5]
[387812304,1758886255280,-761.85483045,0.00039768,5]
[387812305,1758886255289,-198.0,0.00039814,3]
[387812306,1758886255299,-198.0,0.00039814,3]
[387812307,1758886255308,-198.0,0.00039814,3]
[387812308,1758886255317,-151.0,0.00039814,3]
[387812309,1758886255326,-151.0,0.00039814,3]
[387812310,1758886255335,-198.0,0.00039814,3]
[387812311,1758886255344,-198.0,0.00039814,3]
[387812312,1758886255353,-151.0,0.00039814,3]
[387812313,1758886255362,-500.0,0.00039814,3]
[387812314,1758886255371,-376.16810556,0.00039883,34]
[387812315,1758886255381,-325.85,0.000399,30]
[387812316,1758886255390,-696.38299744,0.000399,2]
[387812317,1758886255399,-1000.0,0.00039973,5]
[387812318,1758886255409,-485.79174011,0.0004,30]
[387812319,1758886255418,-480.11616701,0.0004,30]
[387812320,1758886255427,-480.0,0.0004,30]
[387812321,1758886255437,-480.0,0.0004,30]
[387812322,1758886255446,-151.0,0.0004,19]
[387812323,1758886255455,-480.0,0.0004,30]
[387812324,1758886255464,-480.0,0.0004,30]
[387812325,1758886255473,-480.0,0.0004,30]
[387812326,1758886255482,-480.0,0.0004,30]
[387812327,1758886255492,-480.0,0.0004,30]
[387812328,1758886255500,-480.0,0.0004,30]
[387812329,1758886255510,-480.0,0.0004,30]
[387812330,1758886255519,-245.85203929,0.0004,30]
[387812331,1758886255529,-1185.5,0.0004,30]
[387812332,1758886255538,-496.5621678,0.0004,30]
[387812333,1758886255547,-716.53,0.0004,30]
[387812334,1758886255557,-518.02,0.0004,30]
[387812335,1758886255566,-480.0,0.0004,30]
[387812336,1758886255575,-480.0,0.0004,30]
[387812337,1758886255585,-480.0,0.0004,30]
[387812338,1758886255595,-151.441873,0.0004,120]
[387812339,1758886255604,-151.0,0.0004,120]
[387812340,1758886255613,-548.41,0.0004,30]
[387812341,1758886255625,-151.0,0.0004,120]
[387812342,1758886255634,-151.0,0.0004,120]
[387812343,1758886255643,-151.0,0.0004,14]
[387812344,1758886255721,-480.0,0.0004,30]
[387812345,1758886255731,-1173.31,0.0004,30]
[387812346,1758886255741,-480.0,0.0004,30]
[387812347,1758886255750,-480.0,0.0004,30]
[387812348,1758886255760,-480.0,0.0004,30]
[387812349,1758886255769,-480.0,0.0004,30]
[387812350,1758886255778,-480.0,0.0004,30]
[387812351,1758886255787,-480.0,0.0004,30]
[387812352,1758886255797,-480.0,0.0004,30]
[387812353,1758886255806,-480.0,0.0004,30]
[387812354,1758886255816,-951.8,0.0004,30]
[387812355,1758886255826,-480.0,0.0004,30]
[387812356,1758886255835,-489.19463852,0.0004,30]
[387812357,1758886255844,-535.79550189,0.0004,30]
[387812358,1758886255853,-480.0,0.0004,30]
[387812359,1758886255863,-480.0,0.0004,30]
[387812360,1758886255875,-480.0,0.0004,30]
[387812361,1758886255885,-480.0,0.0004,30]
[387812362,1758886255894,-480.0,0.0004,30]
[387812363,1758886255902,-1250.3,0.0004,30]
[387812364,1758886255913,-480.0,0.0004,30]
[387812365,1758886255923,-269.02640793,0.0004,30]
[387812366,1758886255932,-480.0,0.0004,30]
[387812367,1758886255943,-480.0,0.0004,30]
[387812368,1758886255953,-480.0,0.0004,30]
[387812369,1758886255963,-480.0,0.0004,30]
[387812370,1758886255972,-320.08041703,0.0004,30]
[387812371,1758886255982,-480.0,0.0004,30]
[387812372,1758886255991,-480.0,0.0004,30]
[387812373,1758886256000,-480.0,0.0004,30]
[387812374,1758886256010,-151.0,0.0004,120]
[387812375,1758886256020,-480.0,0.0004,30]
[387812376,1758886256029,-480.0,0.0004,30]
[387812377,1758886256039,-480.0,0.0004,30]
[387812378,1758886256048,-151.0,0.0004,120]
[387812379,1758886256057,-484.96319827,0.0004,30]
[387812380,1758886256066,-441.9345647,0.0004,30]
[387812381,1758886256075,-151.0,0.0004,120]
[387812382,1758886256085,-531.24,0.0004,30]
[387812383,1758886256094,-151.0,0.0004,120]
[387812384,1758886256103,-160.0,0.0004,120]
[387812385,1758886256113,-151.0,0.0004,120]
[387812386,1758886256122,-480.0,0.0004,30]
[387812387,1758886256131,-519.19,0.0004,30]
[387812388,1758886256141,-480.0,0.0004,30]
[387812389,1758886256150,-452.07297564,0.0004,30]
[387812390,1758886256159,-1257.23,0.0004,30]
[387812391,1758886256169,-480.0,0.0004,30]
[387812392,1758886256179,-444.37369641,0.0004,30]
[387812393,1758886256189,-224.38975041,0.0004,30]
[387812394,1758886256198,-480.0,0.0004,30]
[387812395,1758886256208,-1140.79,0.0004,30]
[387812396,1758886256218,-4563.8,0.0004,30]
[387812397,1758886256227,-1477.84,0.0004,30]
[387812398,1758886256237,-949.16,0.0004,30]
[387812399,1758886256247,-927.1,0.0004,30]
[387812400,1758886256257,-2921.82,0.0004,30]
[387812401,1758886256267,-1657.92,0.0004,30]
[387812402,1758886256277,-914.89,0.0004,30]
[387812403,1758886256287,-480.0,0.0004,30]
[387812404,1758886256296,-486.85709397,0.0004,30]
[387812405,1758886256305,-480.0,0.0004,30]
[387812406,1758886256314,-480.0,0.0004,30]
[387812407,1758886256324,-480.0,0.0004,30]
[387812408,1758886256333,-2209.22,0.0004,30]
[387812409,1758886256343,-480.0,0.0004,30]
[387812410,1758886256352,-480.0,0.0004,30]
[387812411,1758886256362,-480.0,0.0004,30]
[387812412,1758886256372,-480.0,0.0004,30]
[387812413,1758886256382,-480.0,0.0004,30]
[387812414,1758886256391,-480.0,0.0004,30]
[387812415,1758886256400,-775.73,0.0004,30]
[387812416,1758886256410,-667.41,0.0004,30]
[387812417,1758886256420,-1804.54,0.0004,30]
[387812418,1758886256430,-480.0,0.0004,30]
[387812419,1758886256439,-890.02,0.0004,30]
[387812420,1758886256449,-480.0,0.0004,30]
[387812421,1758886256458,-911.51,0.0004,30]
[387812422,1758886256468,-3647.69,0.0004,30]
[387812423,1758886256478,-1929.82,0.0004,30]
[387812424,1758886256488,-1139.95,0.0004,30]
[387812425,1758886256498,-480.0,0.0004,30]
[387812426,1758886256508,-672.24,0.0004,30]
[387812427,1758886256518,-1456.76,0.0004,30]
[387812428,1758886256527,-1256.61,0.0004,30]
[387812429,1758886256537,-650.07532387,0.0004,120]
[387812430,1758886256546,-1058.01,0.0004,30]
[387812431,1758886256556,-500.0,0.0004,120]
[387812432,1758886256566,-337.60430945,0.0004,120]
[387812433,1758886256575,-519.77163818,0.0004,30]
[387812434,1758886256585,-531.16,0.0004,30]
[387812435,1758886256595,-489.11195192,0.0004,30]
[387812436,1758886256604,-707.41,0.0004,30]
[387812437,1758886256613,-480.0,0.0004,30]
[387812438,1758886256623,-1553.02,0.0004,30]
[387812439,1758886256632,-431.51341044,0.0004,30]
[387812440,1758886256642,-1042.28,0.0004,21]
[387812441,1758886256652,-480.0,0.0004,30]
[387812442,1758886256661,-480.0,0.0004,30]
[387812443,1758886256671,-513.82,0.0004,30]
[387812444,1758886256680,-975.79,0.0004,30]
[387812445,1758886256690,-956.88,0.0004,30]
[387812446,1758886256699,-1622.58,0.0004,30]
[387812447,1758886256708,-742.63,0.0004,30]
[387812448,1758886256718,-923.8,0.0004,30]
[387812449,1758886256728,-960.74,0.0004,30]
[387812450,1758886256737,-1015.2,0.0004,30]
[387812451,1758886256748,-692.2,0.0004,30]
[387812452,1758886256758,-480.0,0.0004,30]
[387812453,1758886256767,-381.381351,0.0004,120]
[387812454,1758886256776,-381.381351,0.0004,120]
[387812455,1758886256786,-480.0,0.0004,30]
[387812456,1758886256795,-381.381351,0.0004,120]
[387812457,1758886256804,-480.0,0.0004,30]
[387812458,1758886256814,-381.381351,0.0004,120]
[387812459,1758886256823,-151.0,0.0004,120]
[387812460,1758886256834,-151.0,0.0004,120]
[387812461,1758886256843,-151.0,0.0004,120]
[387812462,1758886256852,-1057.22,0.0004,30]
[387812463,1758886256863,-298.907468,0.0004,120]
[387812464,1758886256884,-639.89,0.0004,30]
[387812465,1758886256895,-1614.22,0.0004,3]
[387812466,1758886256904,-480.0,0.0004,30]
[387812467,1758886256914,-1131.75,0.0004,30]
[387812468,1758886256924,-151.0,0.0004,120]
[387812469,1758886256933,-1509.77,0.0004,30]
[387812470,1758886256943,-2107.48,0.0004,30]
[387812471,1758886256952,-151.0,0.0004,120]
[387812472,1758886256963,-480.0,0.0004,30]
[387812473,1758886256972,-151.0,0.0004,120]
[387812474,1758886256981,-480.0,0.0004,30]
[387812475,1758886256990,-1117.68,0.0004,30]
[387812476,1758886257000,-151.0,0.0004,120]
[387812477,1758886257010,-480.0,0.0004,30]
[387812478,1758886257019,-4313.75,0.0004,30]
[387812479,1758886257029,-5619.58,0.0004,30]
[387812480,1758886257041,-456.07444069,0.0004,30]
[387812481,1758886257050,-5129.75,0.0004,30]
[387812482,1758886257059,-666.88,0.0004,30]
[387812483,1758886257069,-480.0,0.0004,30]
[387812484,1758886257078,-210.70990657,0.0004,120]
[387812485,1758886257087,-480.0,0.0004,30]
[387812486,1758886257096,-1231.34,0.0004,30]
[387812487,1758886257105,-480.0,0.0004,30]
[387812488,1758886257115,-480.0,0.0004,30]
[387812489,1758886257124,-510.99,0.0004,30]
[387812490,1758886257199,-219.1,0.00040028,30]
[387812491,1758886257209,-450.0,0.00040068,5]
[387812492,1758886257218,-151.0,0.00040088,3]
[387812493,1758886257228,-186.27394449,0.00040088,3]
[387812494,1758886257238,-500.0,0.00040088,3]
[387812495,1758886257247,-480.0,0.00040273,30]
[387812496,1758886257256,-480.0,0.00040273,30]
[387812497,1758886257266,-502.3889813,0.00040273,30]
[387812498,1758886257275,-502.58670048,0.00040273,30]
[387812499,1758886257284,-183.98754463,0.00040273,30]
[387812500,1758886257294,-480.0,0.00040273,30]
[387812501,1758886257302,-480.0,0.00040273,30]
[387812502,1758886257312,-480.0,0.00040273,30]
[387812503,1758886257321,-151.0,0.00040273,120]
[387812504,1758886257330,-480.0,0.00040273,30]
[387812505,1758886257339,-151.0,0.00040273,120]
[387812506,1758886257348,-151.0,0.00040273,120]
[387812507,1758886257358,-1185.5,0.00040273,30]
[387812508,1758886257367,-716.53,0.00040273,30]
[387812509,1758886257377,-518.02,0.00040273,30]
[387812510,1758886257387,-480.0,0.00040273,30]
[387812511,1758886257396,-480.0,0.00040273,30]
[387812512,1758886257405,-574.41939929,0.00040273,30]
[387812513,1758886257414,-548.41,0.00040273,30]
[387812514,1758886257423,-480.0,0.00040273,30]
[387812515,1758886257433,-1173.31,0.00040273,30]
[387812516,1758886257442,-493.30515231,0.00040273,30]
[387812517,1758886257452,-480.0,0.00040273,30]
[387812518,1758886257461,-480.0,0.00040273,30]
[387812519,1758886257470,-512.61622722,0.00040273,30]
[387812520,1758886257479,-480.0,0.00040273,30]
[387812521,1758886257489,-480.0,0.00040273,30]
[387812522,1758886257499,-499.9431995,0.00040273,30]
[387812523,1758886257508,-491.32382937,0.00040273,30]
[387812524,1758886257517,-951.8,0.00040273,30]
[387812525,1758886257526,-480.0,0.00040273,30]
[387812526,1758886257536,-480.0,0.00040273,30]
[387812527,1758886257545,-480.0,0.00040273,30]
[387812528,1758886257555,-480.0,0.00040273,30]
[387812529,1758886257564,-480.0,0.00040273,30]
[387812530,1758886257574,-151.0,0.00040273,120]
[387812531,1758886257583,-480.0,0.00040273,30]
[387812532,1758886257592,-1250.3,0.00040273,30]
[387812533,1758886257601,-151.0,0.00040273,120]
[387812534,1758886257611,-480.0,0.00040273,30]
[387812535,1758886257620,-480.0,0.00040273,30]
[387812536,1758886257629,-485.82982289,0.00040273,30]
[387812537,1758886257638,-480.0,0.00040273,30]
[387812538,1758886257648,-480.0,0.00040273,30]
[387812539,1758886257657,-480.0,0.00040273,30]
[387812540,1758886257666,-480.0,0.00040273,30]
[387812541,1758886257675,-480.0,0.00040273,30]
[387812542,1758886257685,-183.76984072,0.00040273,30]
[387812543,1758886257694,-480.0,0.00040273,30]
[387812544,1758886257703,-480.0,0.00040273,30]
[387812545,1758886257711,-531.24,0.00040273,30]
[387812546,1758886257720,-480.0,0.00040273,30]
[387812547,1758886257729,-519.19,0.00040273,30]
[387812548,1758886257738,-480.0,0.00040273,30]
[387812549,1758886257749,-434.6,0.00040273,30]
[387812550,1758886257759,-1257.23,0.00040273,30]
[387812551,1758886257768,-480.0,0.00040273,30]
[387812552,1758886257777,-480.0,0.00040273,30]
[387812553,1758886257787,-1140.79,0.00040273,30]
[387812554,1758886257796,-4563.8,0.00040273,30]
[387812555,1758886257806,-1477.84,0.00040273,30]
[387812556,1758886257815,-949.16,0.00040273,30]
[387812557,1758886257825,-927.1,0.00040273,30]
[387812558,1758886257834,-2921.82,0.00040273,30]
[387812559,1758886257843,-1657.92,0.00040273,30]
[387812560,1758886257853,-914.89,0.00040273,30]
[387812561,1758886257862,-480.0,0.00040273,30]
[387812562,1758886257876,-480.0,0.00040273,30]
[387812563,1758886257885,-486.24585482,0.00040273,30]
[387812564,1758886257894,-480.0,0.00040273,30]
[387812565,1758886257903,-2209.22,0.00040273,30]
[387812566,1758886257911,-480.0,0.00040273,30]
[387812567,1758886257920,-480.0,0.00040273,30]
[387812568,1758886257930,-480.0,0.00040273,30]
[387812569,1758886257939,-480.0,0.00040273,30]
[387812570,1758886257948,-480.0,0.00040273,30]
[387812571,1758886257958,-341.55055039,0.00040273,30]
[387812572,1758886257968,-775.73,0.00040273,30]
[387812573,1758886257976,-667.41,0.00040273,30]
[387812574,1758886257985,-1804.54,0.00040273,30]
[387812575,1758886257994,-480.0,0.00040273,30]
[387812576,1758886258003,-168.78652993,0.00040273,30]
[387812577,1758886258012,-890.02,0.00040273,30]
[387812578,1758886258021,-911.51,0.00040273,30]
[387812579,1758886258030,-3647.69,0.00040273,30]
[387812580,1758886258039,-1929.82,0.00040273,30]
[387812581,1758886258048,-1139.95,0.00040273,30]
[387812582,1758886258057,-480.0,0.00040273,30]
[387812583,1758886258066,-672.24,0.00040273,30]
[387812584,1758886258075,-1456.76,0.00040273,30]
[387812585,1758886258085,-1256.61,0.00040273,30]
[387812586,1758886258094,-1058.01,0.00040273,30]
[387812587,1758886258103,-531.16,0.00040273,30]
[387812588,1758886258112,-707.41,0.00040273,30]
[387812589,1758886258121,-151.0,0.00040273,120]
[387812590,1758886258131,-480.0,0.00040273,30]
[387812591,1758886258140,-1553.02,0.00040273,30]
[387812592,1758886258150,-151.0,0.00040273,120]
[387812593,1758886258159,-151.0,0.00040273,120]
[387812594,1758886258169,-151.0,0.00040273,120]
[387812595,1758886258179,-1042.28,0.00040273,21]
[387812596,1758886258188,-480.0,0.00040273,30]
[387812597,1758886258197,-480.0,0.00040273,30]
[387812598,1758886258207,-513.82,0.00040273,30]
[387812599,1758886258216,-975.79,0.00040273,30]
[387812600,1758886258225,-956.88,0.00040273,30]
[387812601,1758886258234,-1622.58,0.00040273,30]
[387812602,1758886258244,-742.63,0.00040273,30]
[387812603,1758886258253,-923.8,0.00040273,30]
[387812604,1758886258262,-960.74,0.00040273,30]
[387812605,1758886258271,-1015.2,0.00040273,30]
[387812606,1758886258280,-692.2,0.00040273,30]
[387812607,1758886258289,-320.75524332,0.00040273,30]
[387812608,1758886258299,-480.0,0.00040273,30]
[387812609,1758886258307,-480.0,0.00040273,30]
[387812610,1758886258317,-1057.22,0.00040273,30]
[387812611,1758886258326,-639.89,0.00040273,30]
[387812612,1758886258335,-1614.22,0.00040273,3]
[387812613,1758886258344,-502.88928689,0.00040273,30]
[387812614,1758886258353,-1131.75,0.00040273,30]
[387812615,1758886258373,-611.74,0.00040273,120]
[387812616,1758886258383,-1509.77,0.00040273,30]
[387812617,1758886258393,-2107.48,0.00040273,30]
[387812618,1758886258402,-480.0,0.00040273,30]
[387812619,1758886258411,-480.0,0.00040273,30]
[387812620,1758886258420,-1117.68,0.00040273,30]
[387812621,1758886258430,-480.0,0.00040273,30]